{"text_format":"1","workbook":"xlsx","n_sheets":1,"sheets":["CATALOGO"],"not_rendered":{"charts":0,"images":1,"macros":1,"external_links":0,"defined_names":122,"comments":0,"pivot_tables":0},"unopened":[],"bounds":{"document_bytes":16777216,"sheet_cells":100000,"rows_first":2000,"rows_last":500,"rows_between":2000,"halvings":0,"cell_chars":16384,"cell_head_chars":4096},"cells_cut":0,"cells_raw":0,"read":"whole","date_system":"1900"}

{"sheet":"CATALOGO","index":0,"n_rows":39,"n_cols":8,"rows_kept":39,"cut":false,"hidden":false,"merged":[[37,1,38,5],[14,1,14,7],[36,1,36,5],[1,3,1,6],[3,3,5,6],[4,2,5,2],[6,3,6,5],[7,2,9,2],[7,3,7,5],[8,3,8,5],[9,3,9,5],[10,3,10,6],[11,2,12,2],[11,3,11,6],[12,3,12,6]]}
[]
[null,null,"GOBIERNO DEL ESTADO DE JALISCO","NÚMERO DE PROCEDIMIENTO:"]
[null,null,"COMITÉ DE ADJUDICACIÓN DE PROYECTOS"]
[null,null,null,"LPN-02/2022-CEAP-SITEUR-L4"]
[]
[]
[null,null,"DESCRIPCIÓN GENERAL DE LOS TRABAJOS:","FECHA DE INICIO AUTORIZADA:"]
[null,null,"MODELO INTEGRAL DE MOVILIDAD DE LA ZONA SUR DEL ÁREA METROPOLITANA DE GUADALAJARA (LÍNEA 4)","FECHA DE TERMINACIÓN AUTORIZADA:"]
[null,null,null,"PLAZO DE EJECUCIÓN:"]
[null,null,null,"FECHA:"]
[null,null,"RAZÓN SOCIAL DEL LICITANTE:","NOMBRE Y FIRMA DEL REPRESENTANTE LEGAL:",null,null,null,"DOCUMENTO"]
[null,null,null,0,null,null,null,"E4 B"]
[]
[]
[null,"PRESUPUESTO TOTAL DE LOS TRABAJOS EN LA ETAPA DE CONSTRUCCIÓN Y EQUIPAMIENTO"]
[]
[null,"CLAVE","DESCRIPCIÓN ","UNIDAD","CANTIDAD","PRECIO DE LA PARTIDA PROPUESTO","PRECIO DE LA PARTIDA PROPUESTO CON LETRA","IMPORTE ($) M. N."]
[]
[null,null,{"$f":"+C8","v":"MODELO INTEGRAL DE MOVILIDAD DE LA ZONA SUR DEL ÁREA METROPOLITANA DE GUADALAJARA (LÍNEA 4)"}]
[null,"B","Etapa de Construcción y equipamiento",null,null,null,null,{"$f":"SUM(H21:H36)","v":0}]
[null,"SITEUR-E-B001","Pago de afectaciones al derecho de vía, incluye: integración de expediente.","Pda",1,null,null,{"$f":"+ROUND(E21*F21,2)","v":0}]
[null,"SITEUR-FE-B002","Construcción de pasos a desnivel, incluye: materiales, herramienta, mano de obra, equipo y maquinaria necesaria para su construcción.","Pda",1,null,null,0]
[null,"SITEUR-FE-B003","Construcción de obras de integración modal y de entornos urbanos, incluye: materiales, herramienta, mano de obra, equipo y maquinaria necesaria para su construcción.","Pda",1,null,null,0]
[null,"SITEUR-FE-B004","Construcción de plataforma y vía, de estaciones a superficie y confinamiento de vía, incluye: nivelaciones, control topográfico, compactación requerida de acuerdo a especificación, suministro y acarreo de materiales, construcción de estación tipo A y B, mano de obra necesaria, equipo y maquinaria necesaria para su construcción.","Pda",1,null,null,0]
[null,"SITEUR-FE-B005","Construcción de infraestructura de patios y talleres, incluye: la construcción del centro de control, instalaciones E&M, los materiales, mano de obra, equipo y maquinaria necesaria para su construcción.","Pda",1,null,null,0]
[null,"SITEUR-FEP-B006","Construcción de adecuaciones a pasos a nivel, incluye: materiales, herramienta, mano de obra, equipo y maquinaria necesaria para su construcción.","Pda",1,null,null,0]
[null,"SITEUR-FEP-B007","Construcción de obras inducidas y acciones complementarias, incluye: construcción de cunetas, contracunetas, obras hidráulicas, materiales, herramienta, mano de obra, equipo y maquinaria necesaria para su construcción.","Pda",1,null,null,0]
[null,"SITEUR-P-B008","Construcción de instalaciones, instalaciones electromecánicas en estaciones, electrificación de vía, subestaciones, alimentación eléctricas, señalización y enclavamientos de línea general, semaforización viaria y comunicación de la línea general y los sistemas de información al usuario de recaudo.","Pda",1,null,null,0]
[null,"SITEUR-P-B009","Señalización de patios y talles y la maquinaria de talles, incluye:  materiales, mano de obra, equipo y maquinaria necesaria para su construcción.","Pda",1,null,null,0]
[null,"SITEUR-P-B010","Suministro y puesta en marcha de material rodante y buses alimentadores.","Pda",1,null,null,0]
[null,"SITEUR-P-B011","Acción necesarias para adecuación y construcción de obras de desvío durante los trabajos, gestión de residuos y mitigación de impacto ambiental.","Pda",1,null,null,0]
[null,"SITEUR-P-B012","Ingeniería y asistencia a obra, incluye: personal técnico calificado.","Pda",1,null,null,0]
[null,"SITEUR-P-B013","Supervisión externa y certificación de Seguridad del proyecto, incluye: el personal técnico calificado para realizar las actividades previas a la construcción (análisis y recopilación de la información del contrato, anteproyecto); recepción física del terreno y/o instalaciones donde se desarrollarán los trabajos (localización de la obra, recorridos de campo); definición de bancos de materiales y lugares de tiro para desperdicios, producto de excavaciones, demoliciones o limpiezas de obra), definición de la zonificación de la obra (área de oficinas, área de servicios, área para almacenamiento de equipos y taller de reparaciones, bodega de materiales); elaboración de organigramas de la organización (organigrama de la contratista y de la supervisión); apertura de bitácora de obra; revisión y autorización del proyecto ejecutivo, presupuesto y programas de obra; control de programas y de la información (elaboración o adecuación de programas de construcción, actualización periódica de los programas, elaboración de informes, juntas de trabajo y bitácora de obra); control de calidad; control de costos (revisión y autorización de estimaciones de obra); recepción de la obra, actualización del proyecto, integración de garantías y manuales de operación y el finiquito de los trabajos; así como el personal técnico para realizar las certificaciones de seguridad del proyecto.","Pda",1,null,null,0]
[null,"SITEUR-P-B014","Gastos financieros en periodo de inversión","Pda",1,null,null,0]
[null,"SITEUR-P-B015","Gastos de estructuración (seguros, fianzas, comisiones)","Pda",1,null,null,0]
[]
[null,"IMPORTE CON LETRA (IVA INCLUIDO)",null,null,null,null,"SUBTOTAL M. N.",{"$f":"H20","v":0}]
[null,{"$f":"+numtext(H39)","v":"CERO PESOS 00/100 M.N."},null,null,null,null,"IVA M. N.",{"$f":"H37*0.16","v":0}]
[null,null,null,null,null,null,"TOTAL M. N.",{"$f":"H37+H38","v":0}]